Cogmind - Beta 9.5 @@@ ROGUE MODE // 2020.04.13 @ 20:03:13 Player: Ape Result: Destroyed by S-27 Virus with Autogun Performance ------------- Evolutions (6) 3000 Regions Visited (7) 1400 Robots Destroyed (1) 5 Value Destroyed (5) 5 Prototype IDs (2) 40 Alien Tech Used (0) 0 Bonus (12507) 12507 TOTAL SCORE: 16957 Bonus ------- Devolution -10500 Gauntlet 4500 No Salvage 1500 Pure Core 3000 Scavenger 6000 Simple Hacker 3682 Sticky Parts 3000 Pacifist 1325 Cogmind --------- Core Integrity 0/800 Matter 270/300 Energy 100/100 System Corruption 1% Temperature Cool (0) Movement Core (50) Location -4/Factory Parts ------- > --- POWER (2) -------- (None) > --- PROPULSION (2) --- (None) > --- UTILITY (5) ------ Enhanced Optical Array Advanced Signal Interpreter Terrain Scan Processor Advanced Targeting Computer System Shield > --- WEAPON (5) ------- (None) > --- INVENTORY (0) ---- (None) Peak State ------------ > --- POWER ------------ Micro Fission Core > --- PROPULSION ------- Linear Gravjet Linear Gravjet > --- UTILITY ---------- Enhanced Optical Array Advanced Signal Interpreter Terrain Scan Processor Advanced Targeting Computer System Shield > --- WEAPON ----------- (None) > --- INVENTORY -------- (None) [Rating: 33] Favorites ----------- Power Micro Fission Core Power Core Micro Fission Core Propulsion Aluminum Leg Treads Light Treads Leg Aluminum Leg Hover Unit Linear Gravjet Flight Unit Xenon Bombardment Thruster Utility Terrain Scan Processor Device Advanced Terrain Scanner Processor Terrain Scan Processor Hackware System Shield Weapon Assault Rifle Ballistic Gun Assault Rifle Impact Weapon Powered Hammer Build | -11 -10 -9 -8 -7 -6 -5 -4 ------- Run | Scr Mat Mat Mat Fac Fac Fac Fac Slots Evolved -6 | . . -1 -1 -1 -1 -1 -1 Power . | . . . . . . . . Propulsion -3 | . . . -1 -1 -1 . . Utility -2 | . . . . . . -1 -1 Weapon -1 | . . -1 . . . . . Parts Attached 25 | 6 . 6 2 3 3 3 2 Power 1 | . . . . . . 1 . Engine . | . . . . . . . . Core 1 | . . . . . . 1 . Reactor . | . . . . . . . . Propulsion 11 | 4 . 1 1 1 1 1 2 Treads 2 | 2 . . . . . . . Leg 2 | 2 . . . . . . . Wheel . | . . . . . . . . Hover 3 | . . . . . 1 1 1 Flight 4 | . . 1 1 1 . . 1 Utility 10 | . . 5 1 1 2 1 . Device 3 | . . 3 . . . . . Storage . | . . . . . . . . Processor 5 | . . 2 1 1 1 . . Hackware 2 | . . . . . 1 1 . Protection . | . . . . . . . . Artifact . | . . . . . . . . Weapon 3 | 2 . . . 1 . . . Energy Gun . | . . . . . . . . Energy Cannon . | . . . . . . . . Ballistic Gun 2 | 2 . . . . . . . Ballistic Cannon . | . . . . . . . . Launcher . | . . . . . . . . Special Weapon . | . . . . . . . . Impact Weapon 1 | . . . . 1 . . . Slashing Weapon . | . . . . . . . . Piercing Weapon . | . . . . . . . . Special Melee Weapon . | . . . . . . . . Unidentified Prototypes . | . . . . . . . . Parts Lost 20 | . . 11 1 1 3 . 4 Power 1 | . . . . . . . 1 Propulsion 11 | . . 5 1 1 1 . 3 Utility 5 | . . 4 . . 1 . . Weapon 3 | . . 2 . . 1 . . Highest Loss Streak 8 | . . 8 1 1 2 . 4 Average Slot Usage (%) 28 | . 30 25 13 17 30 35 48 Treads 2 | . 10 6 . . . . . Leg 2 | . 10 6 . . . . . Hover 1 | . . . . . 2 3 8 Processor 14 | . . 2 10 12 20 26 28 Hackware 1 | . . . . . 3 3 7 Ballistic Gun 2 | . 10 5 . . . . . Impact Weapon 1 | . . . . 2 2 . . Naked Turns . | . . . . . . . . Heaviest Build 5 | 3 3 3 . 3 3 5 5 Greatest Support 24 | 3 3 3 6 7 14 12 24 Greatest Overweight (x) . | . . . . . . . . Average Overweight (x) . | . . . . . . . . Largest Inventory Capacity . | . . . . . . . . Average Capacity . | . . . . . . . . Most Carried . | . . . . . . . . Average Carried . | . . . . . . . . Final Capacity . | . . . . . . . . Final Carried . | . . . . . . . . Class Distribution -------------------- 100% | Mutant Dominant Class ---------------- Mutant | -10/Materials Mutant | -9/Materials Mutant | -8/Materials Mutant | -7/Factory Mutant | -6/Factory Mutant | -5/Factory Mutant | -4/Factory Resources | -11 -10 -9 -8 -7 -6 -5 -4 ----------- Run | Scr Mat Mat Mat Fac Fac Fac Fac Matter Collected 302 | 249 . . . . 15 38 . Remotely . | . . . . . . . . Salvage Created 15 | . . . . . 15 . . Parts . | . . . . . . . . Haulers Intercepted . | . . . . . . . . Recyclers Shooed . | . . . . . . . . Parts Field Recycled . | . . . . . . . . Retrieved Matter . | . . . . . . . . Parts Self-Destructed . | . . . . . . . . Prevented . | . . . . . . . . Kills | -11 -10 -9 -8 -7 -6 -5 -4 ------- Run | Scr Mat Mat Mat Fac Fac Fac Fac Combat Hostiles Destroyed . | . . . . . . . . Classes Destroyed 1 | . . . . . 1 . . Builder 1 | . . . . . 1 . . Best Kill Streak 1 | . . . . . 1 . . Combat Bots Only . | . . . . . . . . Max Kills in Single Turn 1 | . . . . . 1 . . Gunslinging . | . . . . . . . . Exploded . | . . . . . . . . Melee . | . . . . . . . . Uniques/NPCs Destroyed . | . . . . . . . . Combat | -11 -10 -9 -8 -7 -6 -5 -4 -------- Run | Scr Mat Mat Mat Fac Fac Fac Fac Damage Taken 2654 | . 204 895 250 95 165 107 938 Core 1610 | . 16 288 213 76 110 107 800 Absorbed by Shields . | . . . . . . . . Core Remaining (%) 85 | 100 98 64 73 90 86 86 . Volleys Fired . | . . . . . . . . Largest . | . . . . . . . . Hottest . | . . . . . . . . Shots Fired . | . . . . . . . . Gun . | . . . . . . . . Cannon . | . . . . . . . . Launcher . | . . . . . . . . Special . | . . . . . . . . Kinetic . | . . . . . . . . Thermal . | . . . . . . . . Explosive . | . . . . . . . . Electromagnetic . | . . . . . . . . Robot Hit Streak . | . . . . . . . . Robot Miss Streak . | . . . . . . . . Penetration Max . | . . . . . . . . Secondary Targets . | . . . . . . . . Shots Hit Robots . | . . . . . . . . Core Hits 4 | . . 2 . . 2 . . Critical Hits . | . . . . . . . . Critical Kills . | . . . . . . . . Critical Parts Destroyed . | . . . . . . . . Melee Attacks 13 | . . . . 12 1 . . Impact 13 | . . . . 12 1 . . Slashing . | . . . . . . . . Piercing . | . . . . . . . . Sneak Attacks . | . . . . . . . . Combat Hostiles . | . . . . . . . . Follow-up Attacks . | . . . . . . . . Damage Inflicted 62 | . 7 33 . . 22 . . Guns . | . . . . . . . . Cannons . | . . . . . . . . Explosions . | . . . . . . . . Melee . | . . . . . . . . Ramming 62 | . 7 33 . . 22 . . Kinetic . | . . . . . . . . Thermal . | . . . . . . . . Explosive . | . . . . . . . . Electromagnetic . | . . . . . . . . Impact . | . . . . . . . . Slashing . | . . . . . . . . Piercing . | . . . . . . . . Highest Corruption 1 | . . 1 . . 1 . 1 Average Corruption 1 | . . 1 . . 1 . 1 Corruption Purged . | . . . . . . . . Effects 1 | . . 1 . . . . . Message Errors 1 | . . 1 . . . . . Overload Shots . | . . . . . . . . Overflow Damage . | . . . . . . . . Projectiles . | . . . . . . . . Explosions . | . . . . . . . . Melee . | . . . . . . . . Knockbacks . | . . . . . . . . Impact . | . . . . . . . . Kinetic . | . . . . . . . . Secondary . | . . . . . . . . Self-Inflicted Damage 28 | . 3 15 . . 10 . . Shots . | . . . . . . . . Rammed 12 | . 1 8 . . 3 . . Targets Rammed 12 | . 1 8 . . 3 . . Kicked . | . . . . . . . . Crushed . | . . . . . . . . Highest Temperature 135 | . 1 4 . . . . 135 Average Temperature 45 | . 1 2 . . . . 47 Received Heat Transfer 747 | . 111 264 81 39 63 18 171 Siege Activations . | . . . . . . . . Robots Corrupted . | . . . . . . . . Combat Hostiles . | . . . . . . . . Parts Fried . | . . . . . . . . Impact Corruptions . | . . . . . . . . Robots Melted . | . . . . . . . . Combat Hostiles . | . . . . . . . . Parts Melted . | . . . . . . . . Heat Transferred . | . . . . . . . . Parts Sabotaged . | . . . . . . . . Parts Stolen . | . . . . . . . . Parts Stripped . | . . . . . . . . Power Chain Reactions . | . . . . . . . . Missiles Intercepted . | . . . . . . . . Alert | -11 -10 -9 -8 -7 -6 -5 -4 ------- Run | Scr Mat Mat Mat Fac Fac Fac Fac Peak Influence 151 | . 65 48 65 137 121 151 120 Average Influence 68 | . 32 22 23 85 87 107 99 Maximum Alert Level . | . . . . . . . . Low Security (%) 100 | 100 100 100 100 100 100 100 100 Level 1 . | . . . . . . . . Level 2 . | . . . . . . . . Level 3 . | . . . . . . . . Level 4 . | . . . . . . . . Level 5 . | . . . . . . . . High Security . | . . . . . . . . Max Security . | . . . . . . . . Squads Dispatched 16 | . 5 2 2 2 2 1 2 Investigation 5 | . 2 1 . . 1 . 1 Extermination 1 | . . . . 1 . . . Reinforcement 10 | . 3 1 2 1 1 1 1 Assault . | . . . . . . . . Garrison . | . . . . . . . . Intercept . | . . . . . . . . Construction Impeded . | . . . . . . . . Haulers Reinforced . | . . . . . . . . Stealth | -11 -10 -9 -8 -7 -6 -5 -4 --------- Run | Scr Mat Mat Mat Fac Fac Fac Fac Distress Signals 4 | . . . 1 2 1 . . Communications Jammed . | . . . . . . . . Distress Signals . | . . . . . . . . Times Spotted 139 | . 17 32 22 15 16 15 22 Peak Tracking Total 16 | . 11 13 16 7 7 6 15 Tactical Retreats 23 | . 3 6 2 3 4 4 1 Traps | -11 -10 -9 -8 -7 -6 -5 -4 ------- Run | Scr Mat Mat Mat Fac Fac Fac Fac Traps Triggered 4 | . 2 . . . . 1 1 Indirectly . | . . . . . . . . Trap Hack Attempts . | . . . . . . . . Triggered . | . . . . . . . . Disarmed . | . . . . . . . . Reprogrammed . | . . . . . . . . Reused . | . . . . . . . . Traps Extracted . | . . . . . . . . Installed . | . . . . . . . . Triggered . | . . . . . . . . Machines | -11 -10 -9 -8 -7 -6 -5 -4 ---------- Run | Scr Mat Mat Mat Fac Fac Fac Fac Machines Disabled . | . . . . . . . . Max in Single Turn . | . . . . . . . . Garrison Access 1 | . . . . . 1 . . Machines Sabotaged . | . . . . . . . . Garrisons Compromised . | . . . . . . . . Overloaded Fab Kills . | . . . . . . . . Fab Network Shutdowns . | . . . . . . . . Hacking | -11 -10 -9 -8 -7 -6 -5 -4 --------- Run | Scr Mat Mat Mat Fac Fac Fac Fac Machines Accessed 22 | . 2 6 . 8 3 1 2 Terminals 19 | . 2 6 . 6 2 1 2 Fabricators 1 | . . . . 1 . . . Repair Stations . | . . . . . . . . Recycling Units . | . . . . . . . . Scanalyzers . | . . . . . . . . Garrison Access 2 | . . . . 1 1 . . Total Hacks 59 | . 4 19 . 18 7 4 7 Successful 30 | . 3 13 . 8 2 2 2 Failed 29 | . 1 6 . 10 5 2 5 Catastrophic 7 | . . . . 3 . 2 2 Database Lockouts . | . . . . . . . . Manual . | . . . . . . . . Terminals 55 | . 4 19 . 15 6 4 7 Fabricators 2 | . . . . 2 . . . Repair Stations . | . . . . . . . . Recycling Units . | . . . . . . . . Scanalyzers . | . . . . . . . . Garrison Access 2 | . . . . 1 1 . . Terminal Hacks 28 | . 3 13 . 7 1 2 2 Record 1 | . . 1 . . . . . Prototype ID Bank 1 | . . 1 . . . . . Level Access Points 2 | . . . . 1 . . 1 Branch Access Points 2 | . . 1 . . . 1 . Emergency Access Points 3 | . 1 . . 2 . . . Terminal Index 1 | . . 1 . . . . . Alert Level 2 | . . 2 . . . . . Unreport Threat 2 | . . 2 . . . . . Locate Traps 7 | . . 2 . 3 1 . 1 Registered Components 1 | . . 1 . . . . . Zone Layout 6 | . 2 2 . 1 . 1 . Fabricator Hacks 1 | . . . . 1 . . . Build 1 | . . . . 1 . . . Repair Station Hacks . | . . . . . . . . Recycling Unit Hacks . | . . . . . . . . Scanalyzer . | . . . . . . . . Garrison Access Hacks 1 | . . . . . 1 . . Seal Access 1 | . . . . . 1 . . Unauthorized Hacks . | . . . . . . . . Terminals . | . . . . . . . . Fabricators . | . . . . . . . . Repair Stations . | . . . . . . . . Recycling Units . | . . . . . . . . Scanalyzers . | . . . . . . . . Garrison Access . | . . . . . . . . Data Cores Recovered . | . . . . . . . . Used . | . . . . . . . . Hacking Detections 20 | . 2 5 . 8 2 1 2 Full Trace Events 3 | . . 1 . . 1 . 1 Feedback Events . | . . . . . . . . Feedback Blocked . | . . . . . . . . Robot Schematics Acquired . | . . . . . . . . Robots Built 1 | . . . . 1 . . . Matter 153 | . . . . 153 . . . Time 40 | . . . . 40 . . . Total Robot Build Rating 1 | . . . . 1 . . . Part Schematics Acquired . | . . . . . . . . Parts Built . | . . . . . . . . Matter . | . . . . . . . . Time . | . . . . . . . . Total Part Build Rating . | . . . . . . . . Parts Repaired . | . . . . . . . . Time . | . . . . . . . . Parts Recycled . | . . . . . . . . Recycled Matter . | . . . . . . . . Retrieved Matter . | . . . . . . . . Retrieved Components . | . . . . . . . . Parts Scanalyzed . | . . . . . . . . Part Schematics Acquired . | . . . . . . . . Parts Damaged . | . . . . . . . . Bothacking | -11 -10 -9 -8 -7 -6 -5 -4 ------------ Run | Scr Mat Mat Mat Fac Fac Fac Fac Used RIF Installer . | . . . . . . . . Robots Hacked . | . . . . . . . . Non-combat . | . . . . . . . . Combat . | . . . . . . . . Robot Hacks Applied . | . . . . . . . . Relay Couplers Released . | . . . . . . . . Robots Rewired . | . . . . . . . . Allies Hacked . | . . . . . . . . Hacks Repelled . | . . . . . . . . Allies | -11 -10 -9 -8 -7 -6 -5 -4 -------- Run | Scr Mat Mat Mat Fac Fac Fac Fac Total Allies 1 | . . . . 1 . . . Largest Group 1 | . . . . 1 . . . Highest-Rated Group 8 | . . . . 8 . . . Highest-Rated Ally 8 | . . . . 8 . . . Total Orders 7 | . . . . . 6 . 1 FOLLOW 2 | . . . . . 2 . . EXPLORE 5 | . . . . . 4 . 1 Ally Attacks . | . . . . . . . . Total Damage . | . . . . . . . . Kills . | . . . . . . . . Allies Corrupted 1 | . . . . . . . 1 Allies Melted . | . . . . . . . . Intel | -11 -10 -9 -8 -7 -6 -5 -4 ------- Run | Scr Mat Mat Mat Fac Fac Fac Fac Robot Analysis Total . | . . . . . . . . Derelict Logs Recovered . | . . . . . . . . Drone Launches 4 | . . . . . 2 . 2 Drone Recoveries . | . . . . . . . . Exploration | -11 -10 -9 -8 -7 -6 -5 -4 ------------- Run | Scr Mat Mat Mat Fac Fac Fac Fac Turns Passed 1308 | 31 136 222 84 282 212 200 141 Spaces Moved 2556 | 44 266 409 182 547 372 406 330 Core 1581 | 44 266 409 78 311 222 184 67 Treads . | . . . . . . . . Legs . | . . . . . . . . Wheels . | . . . . . . . . Hover 609 | . . . . . 150 222 237 Flight 366 | . . . 104 236 . . 26 Fastest Speed 36 | 50 50 50 40 40 50 40 36 Average Speed 47 | 50 50 50 44 45 54 44 40 Slowest Speed 60 | 50 50 50 50 50 60 50 50 Overloaded Moves . | . . . . . . . . Propulsion Burnouts . | . . . . . . . . Robots Hopped 10 | . . . 8 . . . 2 Cave-ins Triggered . | . . . . . . . . Exploration Rate (%) 29 | 3 54 58 36 29 24 19 11 Regions Visited 7 Branch Regions . Pre-discovered Areas . | . . . . . . . . Known Exits Taken 4 | . . . 1 1 1 1 . Unknown Exits Taken 3 | 1 1 1 . . . . . Scrap Searched . | . . . . . . . . Spaces Dug 10 | . . . . 9 1 . . Terrain Destroyed 10 | . . . . 9 1 . . Melee 10 | . . . . 9 1 . . Projectile . | . . . . . . . . AOE . | . . . . . . . . Actions | -11 -10 -9 -8 -7 -6 -5 -4 --------- Run | Scr Mat Mat Mat Fac Fac Fac Fac Total 2612 | 49 268 422 175 562 379 423 334 Wait 6 | . 2 . . 1 . . 3 Move 2532 | 43 265 408 168 546 371 405 326 Hop 7 | . . . 5 . . . 2 Pick Up . | . . . . . . . . Fast Attach 25 | 6 . 6 2 3 3 3 2 Attach . | . . . . . . . . Detach . | . . . . . . . . Swap . | . . . . . . . . Drop . | . . . . . . . . Fire . | . . . . . . . . Melee 13 | . . . . 12 1 . . Ram 12 | . 1 8 . . 3 . . Kick . | . . . . . . . . Crush . | . . . . . . . . Escape Stasis 15 | . . . . . . 15 . Rewire . | . . . . . . . . Trap . | . . . . . . . . Miscellaneous 2 | . . . . . 1 . 1 Route ------- -11/Scrapyard -10/Materials -9/Materials -8/Materials -7/Factory -6/Factory -5/Factory -4/Factory (discovered 1 exit: Res) History --------- Turn | Location | Event 14 | -11/Scrapyard | Discovered new exit (range 15) 32 | -11/Scrapyard | Entered Materials 102 | -10/Materials | Discovered new exit (range 12) 128 | -10/Materials | Discovered new exit (range 11) 155 | -10/Materials | Discovered new exit (range 4) 159 | -10/Materials | Discovered new exit (range 14) 168 | -10/Materials | Entered another Materials area 168 | -9/Materials | Devolved, losing 1 slot: Weapon x-1 221 | -9/Materials | Discovered new exit (range 15) 255 | -9/Materials | Discovered new exit (range 10) 282 | -9/Materials | Identified exit to Mines 295 | -9/Materials | Lost 3 parts (2n1w) 309 | -9/Materials | Build established: Mutant 336 | -9/Materials | Discovered new exit (range 8) 384 | -9/Materials | Discovered new exit (range 13) 390 | -9/Materials | Entered another Materials area 390 | -8/Materials | Devolved, losing 1 slot: Propulsion x-1 411 | -8/Materials | Lost 8 parts (3n4u1w) 436 | -8/Materials | Discovered new exit (range 16) 469 | -8/Materials | Discovered new exit (range 10) 473 | -8/Materials | Identified exit to Factory 474 | -8/Materials | Entered Factory 474 | -7/Factory | Devolved, losing 1 slot: Propulsion x-1 477 | -7/Factory | Discovered new exit (range 11) 482 | -7/Factory | Identified exit to Lower Caves 487 | -7/Factory | Identified exit to Factory 554 | -7/Factory | Fabricated R-06 Scavenger? 708 | -7/Factory | Discovered exit to Lower Caves (range 5) 756 | -7/Factory | Entered another Factory area 756 | -6/Factory | Devolved, losing 1 slot: Propulsion x-1 845 | -6/Factory | Spotted B-75 Beast 962 | -6/Factory | Discovered new exit (range 9) 967 | -6/Factory | Identified exit to Factory 968 | -6/Factory | Entered another Factory area 968 | -5/Factory | Devolved, losing 1 slot: Utility x-1 1074 | -5/Factory | Discovered new exit (range 14) 1079 | -5/Factory | Identified exit to Upper Caves 1147 | -5/Factory | Discovered new exit (range 14) 1168 | -5/Factory | Identified exit to Factory 1168 | -5/Factory | Entered another Factory area 1168 | -4/Factory | Devolved, losing 1 slot: Utility x-1 1176 | -4/Factory | Identified exit to Research 1280 | -4/Factory | Core integrity fell below 50% 1293 | -4/Factory | Core integrity fell below 20% 1306 | -4/Factory | Lost 4 parts (1p3n) 1309 | -4/Factory | Destroyed by S-27 Virus with Autogun Last Messages --------------- 01259_ Mic. Fission Core destroyed. 01259_ Linear Gravjet destroyed. 01264_ Acquired Field Propulsion Drive. 01272_ Drone destroyed. 01272_ Penetrated by Slug. 01272_ Slug penetrates A-15 Conveyor. 01272_ Slug penetrates Wall. 01275_ Field Propulsion Drive destroyed. 01275_ Linear Gravjet destroyed. 01275_ Slug penetrates A-15 Conveyor. 01275_ Slug penetrates Wall. 01276_ Penetrated by Slug. 01294_ K-01 Serf cleans the Matter Pump. 01298_ Triggered Gamma Bomb Trap. 01298_ A bubble of electromagnetic force engulfs the area. 01298_ Matter Pump disabled. 01300_ Slug penetrates Wall. 01300_ K-01 Serf collects debris. 01304_ Slug penetrates K-01 Serf. 01304_ K-01 Serf destroyed. Map ----- +----------------------------------------------------+ | | | | | | | | | | | | | | | | | | | | | | | | | | | | | | | | | ?????????????????????????????????????????????????? | | ?????????????????????????????????????????????????? | | ?????????????????????????????????????????????????? | | ?????????????????????????????????????????????????? | | ?????????????????????????????????????????????????? | | ????????????????????#############???????????###### | | ????????????????????+ #?###+###???# | | ????????????????????# #?# ##### | | ????????????????????# k ### | | ????????????????????# @ u u % R | | ??????????? #########Y % | | ??????????# #???????# ##### % | | ??????????# #???????#######???# % | | ??????????##+#####+## #?????????????????# | | ????????????????????# s #?????????????????# % | | ????????????????????# #?????????????????# % | | ????????????????????# sk#?????????????????#! % | | ????????????????????# s#?????????????????# | | ????????????????????# s #?????????????????# | | ????????????????????# s #?????????????????# | | ????????????????????# #?????????????????# | | ????????????????????# ??????????????????# | | ????????????????????#w ??????????????????# | | ???????????????????? ??????????????????# | | ???????????????????? ??????????????????# | | ??????????????????? ??????????????????#### | | ??????????????????? ?????????????????????# | | ??????????????????? ?????????????????????# | | ??????????????????? ?????????????????????# | | ????????????????????? ?????????????????????# | | ???????????????????????###?????????????????????#+# | | ???????????????????????????????????????????????? | | ??????????????????????????????????????????????"""" | | ????????????????????????????????????????????# """" | +----------------------------------------------------+ Best States ------------- Heat Dissipation 20 Energy Generation 18 Energy Capacity 170 Matter Stores 300 Matter Capacity 300 Sight Range 22 Terrain Scan Range 20 Terrain Scan Density 85 Evasion (%) 62 Targeting Accuracy 8 Defensive Hacking 12 Item Schematics ----------------- None Robot Schematics ------------------ None Fabricated ------------ R-06 Scavenger | x1 | -7/Factory | Preloaded Alien Tech Used ----------------- None Achievements -------------- None Challenges ------------ Devolution Gauntlet No Salvage Pure Core Scavenger Simple Hacker Sticky Parts Game ------ Seed TractorUltimatePenetrator Manual? 0 Play Time 00:34:42 Cumulative 220.2 hours Start 2020.04.13 @ 19:31:47 End 2020.04.13 @ 20:03:13 Sessions 1 Manual Loads 0 Difficulty Rogue Special Mode None Game No. 114 Rogue 113 Adventurer 0 Explorer 1 Win Type - Total 13 Types 9/0/4/0/0/0/0 Lore% 77 Gallery% 83 Achievement% 66 Wizard Run 0 Options --------- ASCII 0 Keyboard 1 Movement Numpad Keybinds 0 Fullscreen 2 Font 36/Terminus Map View 76x50 Tactical HUD 1 Map Filters NONE Filters NONE Steam 1 RUN: 29b98ff6-70d0-4f62-aaac-5b50c59e36fc